{"text_format":"1","workbook":"xlsx","n_sheets":3,"sheets":["詳細様式","プルダウンリスト","記載要領"],"not_rendered":{"charts":0,"images":253,"macros":1,"external_links":0,"defined_names":4,"comments":0,"pivot_tables":0},"unopened":[],"bounds":{"document_bytes":16777216,"sheet_cells":100000,"rows_first":2000,"rows_last":500,"rows_between":2000,"halvings":0,"cell_chars":16384,"cell_head_chars":4096},"cells_cut":0,"cells_raw":0,"read":"whole","date_system":"1900"}

{"sheet":"詳細様式","index":0,"n_rows":195,"n_cols":31,"rows_kept":195,"cut":false,"hidden":false,"merged":[[131,6,131,8],[97,6,97,10],[98,6,98,10],[107,6,107,11],[113,17,113,19],[109,18,109,19],[109,21,109,22],[109,25,109,26],[109,15,109,17],[131,12,131,16],[128,6,129,10],[129,16,129,17],[126,18,126,28],[122,6,122,24],[127,28,127,29],[131,1,131,5],[119,9,119,10],[143,22,143,23],[116,12,116,14],[116,22,116,29],[42,1,53,5],[44,28,44,29],[56,9,56,10],[57,9,57,10],[57,26,57,27],[108,16,108,30],[141,12,141,19],[120,17,120,18],[93,15,93,16],[95,25,95,30],[94,10,94,14],[96,6,96,10],[115,26,115,29],[112,17,112,18],[129,23,129,24],[117,24,117,25],[81,6,81,30],[69,22,69,23],[74,22,74,23],[32,0,35,0],[32,1,35,5],[32,6,32,8],[33,6,33,8],[42,10,42,11],[66,11,67,13],[66,14,67,17],[61,12,61,13],[36,0,40,0],[39,6,40,10],[46,17,46,18],[35,6,35,8],[58,6,58,7],[57,15,57,16],[46,14,46,15],[45,6,45,9],[45,17,45,22],[57,12,57,13],[60,18,60,19],[52,6,52,9],[57,20,57,21],[52,12,52,13],[52,14,52,15],[52,19,52,20],[0,30,1,30],[0,1,1,29],[55,9,55,10],[62,10,62,11],[62,28,62,29],[61,26,61,27],[59,12,59,13],[59,15,59,16],[57,23,57,24],[59,26,59,27],[52,10,52,11],[43,10,43,15],[37,22,37,30],[37,6,37,20],[36,6,36,10],[36,15,36,30],[40,22,40,23],[43,6,43,9],[47,6,47,9],[47,10,47,15],[42,6,42,9],[51,6,51,9],[50,26,50,27],[36,1,40,5],[0,0,1,0],[67,25,67,29],[116,0,117,0],[116,1,117,5],[116,15,116,16],[117,21,117,22],[115,6,115,8],[115,9,115,10],[115,12,115,14],[115,15,115,16],[115,18,115,21],[117,6,117,7],[116,6,116,7],[117,8,117,9],[115,1,115,5],[115,22,115,24],[72,28,72,29],[73,28,73,29],[74,28,74,29],[38,25,38,26],[38,28,38,29],[46,6,46,9],[46,10,46,11],[46,12,46,13],[44,6,44,9],[44,10,44,11],[49,10,49,15],[51,17,51,22],[45,10,45,15],[56,20,56,21],[51,10,51,15],[55,23,55,24],[55,15,55,16],[55,20,55,21],[51,24,51,29],[46,28,46,29],[56,23,56,24],[54,0,54,30],[55,26,55,27],[49,24,49,29],[50,6,50,9],[50,10,50,11],[49,6,49,9],[48,24,48,25],[42,0,53,0],[53,10,53,15],[55,0,57,0],[45,24,45,29],[31,28,31,29],[55,1,57,5],[48,6,48,9],[58,15,58,16],[42,24,42,25],[111,17,111,30],[106,12,106,19],[105,27,106,27],[31,9,31,10],[70,16,70,17],[71,16,71,17],[82,0,82,30],[48,12,48,13],[42,17,42,18],[38,6,38,7],[38,9,38,10],[38,12,38,13],[38,22,38,23],[52,17,52,18],[52,26,52,27],[56,26,56,27],[90,20,90,29],[55,12,55,13],[56,15,56,16],[11,1,11,5],[170,18,170,19],[102,6,102,10],[10,1,10,5],[10,6,10,30],[16,1,16,5],[14,0,14,30],[21,0,25,0],[25,12,25,21],[15,1,15,5],[15,20,15,29],[27,0,28,0],[27,1,28,5],[13,1,13,5],[11,6,11,20],[11,21,11,23],[17,1,19,5],[18,6,19,8],[17,6,17,30],[12,6,12,30],[27,7,27,8],[28,7,28,8],[21,1,23,5],[16,6,16,30],[17,0,19,0],[29,16,29,17],[29,19,29,20],[30,19,30,20],[29,12,29,13],[30,12,30,13],[29,6,29,8],[18,25,18,29],[29,0,31,0],[29,1,31,5],[26,1,26,5],[18,21,18,23],[27,11,27,12],[28,11,28,12],[27,9,27,10],[29,9,29,10],[19,19,19,25],[29,25,29,26],[30,25,30,26],[31,25,31,26],[30,28,30,29],[26,6,26,8],[31,6,31,8],[26,19,26,30],[20,0,20,30],[2,0,2,8],[4,0,4,5],[5,0,5,5],[6,0,6,5],[8,0,8,30],[4,22,4,23],[4,25,4,26],[4,28,4,29],[7,0,7,5],[4,6,4,14],[5,6,5,14],[6,6,6,14],[7,6,7,14],[5,16,7,18],[4,16,4,20],[5,19,5,20],[6,19,6,20],[7,19,7,20],[5,21,5,30],[6,21,6,30],[7,21,7,22],[7,24,7,26],[7,28,7,30],[11,24,11,25],[60,25,60,26],[117,14,117,15],[117,18,117,19],[174,6,174,9],[169,4,170,7],[167,8,168,10],[148,1,149,5],[161,8,162,10],[165,2,166,7],[135,0,135,30],[173,6,173,7],[144,15,144,16],[145,15,145,16],[145,19,145,20],[145,12,145,13],[163,8,164,10],[15,6,15,9],[11,0,13,0],[18,12,18,14],[18,15,18,19],[23,6,23,9],[21,6,21,9],[63,6,63,16],[174,19,174,21],[174,10,174,11],[174,13,174,14],[174,16,174,17],[153,8,153,19],[119,1,119,5],[120,6,120,7],[121,6,121,7],[121,8,121,16],[147,14,147,15],[147,11,147,12],[138,6,138,7],[140,6,141,8],[120,1,121,5],[146,12,146,14],[142,16,142,30],[119,12,119,13],[132,12,133,16],[127,15,127,16],[127,18,127,19],[173,19,173,21],[163,4,164,7],[148,15,148,17],[149,12,149,13],[148,0,149,0],[148,18,148,30],[151,11,151,12],[113,13,113,14],[108,6,109,8],[108,9,108,15],[105,6,106,8],[91,0,91,30],[87,6,90,7],[103,6,103,10],[92,23,92,30],[101,6,101,10],[112,6,112,13],[111,6,111,13],[111,14,111,16],[113,6,113,11],[105,0,113,0],[105,18,105,19],[144,22,144,23],[92,10,93,12],[107,15,107,16],[103,16,103,17],[103,20,103,30],[101,11,101,30],[12,1,12,5],[24,1,25,5],[30,9,30,10],[28,9,28,10],[31,19,31,20],[70,19,70,21],[60,22,60,23],[49,17,49,22],[53,6,53,9],[50,12,50,13],[50,14,50,15],[50,17,50,18],[50,19,50,20],[50,21,50,22],[28,14,28,17],[22,6,22,9],[34,6,34,8],[35,9,35,30],[29,28,29,29],[62,22,62,23],[26,9,26,10],[23,21,23,29],[30,16,30,17],[13,6,13,30],[175,0,175,30],[164,18,164,19],[164,20,164,30],[171,6,171,7],[173,23,173,27],[171,9,171,10],[171,2,171,5],[167,18,167,30],[168,18,168,19],[168,20,168,30],[167,12,168,13],[167,15,168,16],[167,11,168,11],[170,20,170,30],[169,2,170,3],[165,18,165,30],[163,2,164,3],[174,27,174,29],[174,22,174,24],[166,20,166,30],[167,14,168,14],[167,17,168,17],[172,14,172,29],[174,25,174,26],[143,28,143,29],[144,28,144,29],[145,28,145,29],[143,12,143,13],[146,6,146,7],[146,8,146,9],[145,9,145,11],[145,22,145,23],[142,6,142,8],[136,1,147,5],[140,24,140,29],[136,24,137,28],[143,19,143,20],[147,17,147,18],[132,1,133,5],[141,21,141,23],[142,9,142,14],[143,9,143,11],[140,18,140,19],[134,15,134,29],[136,29,137,30],[132,6,133,8],[134,1,134,5],[136,6,137,7],[143,6,145,8],[137,11,137,22],[140,21,140,23],[147,6,147,10],[139,17,139,30],[139,15,139,16],[144,12,144,13],[146,10,146,11],[146,16,146,17],[30,6,30,8],[161,17,162,17],[92,13,93,14],[42,19,42,20],[44,17,44,18],[44,19,44,20],[44,21,44,22],[141,24,141,29],[128,16,128,17],[144,19,144,20],[144,9,144,11],[162,20,162,30],[161,12,162,13],[130,0,130,30],[139,6,139,11],[133,20,133,29],[143,15,143,16],[125,1,129,5],[136,0,147,0],[161,11,162,11],[129,12,129,13],[129,14,129,15],[122,25,122,30],[128,19,128,21],[148,9,148,13],[157,0,174,1],[173,2,174,5],[172,2,172,5],[157,2,158,5],[161,2,162,7],[165,8,166,17],[148,6,148,8],[42,26,42,27],[65,6,65,7],[128,23,128,24],[125,6,126,10],[125,11,126,13],[161,14,162,14],[154,0,154,30],[160,18,160,19],[160,20,160,30],[159,8,160,17],[153,20,153,21],[131,0,133,0],[150,0,153,0],[127,6,127,10],[127,12,127,13],[152,8,152,29],[153,22,153,23],[153,25,153,26],[153,28,153,29],[149,20,149,30],[169,8,170,10],[167,2,168,7],[166,18,166,19],[162,18,162,19],[149,15,149,19],[151,14,151,15],[158,9,158,29],[159,2,160,7],[151,6,151,7],[150,1,153,5],[150,6,150,30],[149,6,149,7],[149,8,149,9],[161,15,162,16],[151,8,151,9],[163,11,164,17],[123,6,123,24],[69,18,69,19],[77,16,77,23],[76,9,77,12],[73,15,73,16],[75,0,75,30],[109,28,109,29],[104,0,104,30],[92,6,94,9],[95,6,95,10],[79,1,79,5],[66,0,74,0],[120,0,121,0],[119,6,119,7],[118,0,118,30],[110,6,110,13],[120,11,120,13],[109,9,109,10],[105,21,106,22],[83,0,83,30],[72,6,74,8],[76,0,79,0],[66,1,74,5],[92,0,103,0],[74,12,74,13],[71,14,71,15],[70,12,70,13],[70,14,70,15],[123,25,123,30],[125,0,129,0],[76,1,78,5],[110,17,110,30],[110,14,110,16],[100,11,100,17],[103,18,103,19],[92,1,103,5],[94,15,94,30],[100,6,100,10],[124,9,124,30],[105,23,106,26],[99,6,99,10],[97,11,97,30],[98,11,98,30],[99,11,99,30],[122,0,123,0],[117,11,117,12],[26,13,26,15],[26,16,26,17],[27,15,27,16],[27,17,27,18],[27,19,27,20],[27,22,27,25],[52,24,52,25],[53,17,53,22],[44,12,44,13],[44,14,44,15],[42,12,42,13],[43,24,43,29],[48,26,48,27],[39,11,39,30],[31,16,31,17],[31,12,31,13],[43,17,43,22],[48,10,48,11],[44,24,44,25],[44,26,44,27],[40,11,40,13],[40,14,40,15],[40,29,40,30],[41,0,41,30],[60,6,60,7],[59,23,59,24],[72,15,72,16],[73,12,73,13],[74,15,74,16],[64,9,64,10],[60,12,60,13],[60,15,60,16],[61,20,61,21],[61,23,61,24],[59,20,59,21],[65,12,65,13],[69,6,69,11],[63,17,63,20],[73,19,73,20],[74,19,74,20],[72,22,72,23],[68,6,68,10],[66,6,67,10],[59,9,59,10],[61,9,61,10],[72,9,72,11],[73,9,73,11],[65,1,65,5],[122,1,123,5],[128,12,128,13],[128,14,128,15],[84,0,90,0],[69,25,69,26],[84,1,90,5],[127,22,127,23],[127,25,127,26],[102,11,102,30],[80,0,80,30],[81,0,81,5],[86,6,86,11],[84,12,84,18],[86,12,86,18],[84,19,84,30],[86,19,86,30],[85,6,85,11],[85,12,85,30],[92,15,92,21],[95,23,95,24],[93,23,93,24],[124,1,124,5],[84,6,84,11],[46,19,46,20],[46,21,46,22],[46,24,46,25],[46,26,46,27],[48,17,48,18],[48,19,48,20],[56,12,56,13],[47,17,47,22],[47,24,47,29],[50,24,50,25],[50,28,50,29],[52,21,52,22],[52,28,52,29],[53,24,53,29],[60,28,60,29],[61,15,61,16],[105,1,113,5],[109,12,109,13],[62,6,62,7],[114,0,114,30],[107,17,107,18],[60,10,60,11],[69,28,69,29],[71,19,71,30],[74,9,74,11],[72,12,72,13],[62,12,62,13],[62,15,62,16],[62,18,62,19],[65,16,65,30],[64,12,64,13],[64,15,64,16],[64,20,64,21],[64,23,64,24],[64,26,64,27],[64,6,64,8],[58,0,64,0],[58,1,64,5],[62,25,62,26],[73,22,73,23],[69,15,69,16],[72,19,72,20],[71,12,71,13],[69,12,69,13],[70,23,70,24],[65,9,65,10],[70,6,71,10],[189,0,192,29],[178,0,183,1],[179,2,179,7],[179,8,179,13],[179,14,179,23],[179,24,179,30],[180,2,180,7],[180,8,180,13],[180,14,180,23],[180,24,180,30],[181,2,181,7],[181,8,181,13],[181,14,181,23],[181,24,181,30],[183,2,183,7],[183,8,183,13],[182,2,182,7],[182,8,182,13],[182,14,182,23],[182,24,182,30]]}
[null,"就労（勤務内容）証明書"]
[]
["社会福祉法人あさか杏樹会理事長",null,null,null,null,null,null,null,null,"宛",null,null,null,"※本証明書は、保護者本人ではなく、保護者の就労先事業者等にて作成してください。"]
[]
["① 証明書発行事業所名",null,null,null,null,null,null,null,null,null,null,null,null,null,null,null,"⑤ 証明日",null,null,null,null,"西暦",null,null,"年",null,null,"月",null,null,"日"]
["② 証明書発行事業所住所",null,null,null,null,null,null,null,null,null,null,null,null,null,null,null,"⑥ 記載内容の\n　  問合せ先",null,null,"担当部署"]
["③ 証明書発行責任者氏名",null,null,null,null,null,null,null,null,null,null,null,null,null,null,null,null,null,null,"担当者名"]
["④ 証明書発行責任者役職",null,null,null,null,null,null,null,null,null,null,null,null,null,null,null,null,null,null,"電話番号",null,null,null,"―",null,null,null,"―"]
["　下記の内容について、事実であることを証明いたします（ただし、発行者が証明日時点で把握している情報に限る）。"]
["　※本証明書の内容について、就労先事業者等に無断で作成し又は改変を行ったときは、刑法上の罪に問われる場合があります。"]
["No.","項目",null,null,null,null,"記載欄"]
[1,"フリガナ",null,null,null,null,null,null,null,null,null,null,null,null,null,null,null,null,null,null,null,"生年月日",null,null,null,null,"年",null,"月",null,"日"]
[null,"本人氏名"]
[null,"本人住所"]
["本人の就労状況、就労先（就労予定先の場合も含む）に関する項目"]
[2,"就労状況･予定",null,null,null,null,null,null,null,null,null,null,null,null,null,null,null,null,null,"(",null,null,null,null,null,null,null,null,null,null,")"]
[3,"主な就労先事業所名\n※①と異なる場合は記入"]
[4,"主な就労先住所\n※②と異なる場合は記入"]
[null,null,null,null,null,null,"通勤手段",null,null,null,null,null,"自宅の最寄り（",null,null,null,null,null,null,null,")","就労先の最寄り",null,null,"(",null,null,null,null,null,"）"]
[null,null,null,null,null,null,null,null,null,null,null,null,null,null,null,null,null,null,"(",null,null,null,null,null,null,null,"）"]
["本人との契約（雇用契約等、就労に関する契約）・就業規則の内容に関する項目\n※実際に働いた時間や支給された給与の額ではなく、雇用契約・就業規則の内容に関する事項を記載してください。"]
[5,"就労形態",null,null,null,null,"役員･自営業主",null,null,null,null," "]
[null,null,null,null,null,null,"被用者",null,null,null,null," "]
[null,null,null,null,null,null,"その他",null,null,null,null,null,null,null,null,null,null,null,null,null,"(",null,null,null,null,null,null,null,null,null,")"]
[null,"働き方"]
[null,null,null,null,null,null,null,null,null,null,null,"(",null,null,null,null,null,null,null,null,null,null,")"]
[6,"就労日数",null,null,null,null,"一月当たり",null,null,null,null,"日","・","一週当たり",null,null,null,null,"日"]
[7,"就労時間\n※休憩時間含む",null,null,null,null,"月",null,null,"時間",null,null,null,"分","週",null,null,"時間",null,null,null,"分","※月当たりの平均"]
[null,null,null,null,null,null,"日",null,null,"時間",null,null,null,"分","※月当たりの平均"]
[8,"就労時間帯\n※フレックスタイム制、\n裁量労働制の場合は\n標準的な就労時間帯を記入",null,null,null,null,"時間帯①",null,null,null,null,"時",null,null,"分","～",null,null,"時",null,null,"分","（うち休憩時間",null,null,null,null,"分）"]
[null,null,null,null,null,null,"時間帯②",null,null,null,null,"時",null,null,"分","～",null,null,"時",null,null,"分","（うち休憩時間",null,null,null,null,"分）"]
[null,null,null,null,null,null,"時間帯③",null,null,null,null,"時",null,null,"分","～",null,null,"時",null,null,"分","（うち休憩時間",null,null,null,null,"分）"]
[9,"就労日",null,null,null,null,"時間帯①"]
[null,null,null,null,null,null,"時間帯②"]
[null,null,null,null,null,null,"時間帯③"]
[null,null,null,null,null,null,"備　考"]
[10,"雇用（予定）期間等\n※契約締結日ではなく、\n就労開始（予定）日を記入\n※有期の者は終期も記入",null,null,null,null,"雇用契約状況"]
[null,null,null,null,null,null,"就労開始（予定）日（入社日等、働き始めた日）",null,null,null,null,null,null,null,null,null,null,null,null,null,null,"～","契約満了日　(有期の場合は記載)"]
[null,null,null,null,null,null,null,null,"年",null,null,"月",null,null,"日","又は",null,null,null,null,null,"～",null,null,"年",null,null,"月",null,null,"日"]
[null,null,null,null,null,null,"満了後の更新の有無"]
[null,null,null,null,null,null,null,null,null,null,null,"雇用予定期間",null,null,null,null,"年",null,"月",null,"日","～",null,null,"年",null,"月",null,"日"]
["本人の就労実績に関する項目　※実績（就労予定等で実績がない場合は、今後の就労見込み）を記載してください。"]
[11,"直近の\n就労実績",null,null,null,null,"年･月",null,null,null,"ⅰ",null,null,null,"年",null,"月","ⅱ",null,null,null,"年",null,"月","ⅲ",null,null,null,"年",null,"月"]
[null,null,null,null,null,null,"就労日数\n※有給休暇含む",null,null,null,null,null,null,null,null,null,"日",null,null,null,null,null,null,"日",null,null,null,null,null,null,"日"]
[null,null,null,null,null,null,"労働時間\n※休憩・残業時間含む",null,null,null,null,null,"時間",null,null,null,"分",null,null,"時間",null,null,null,"分",null,null,"時間",null,null,null,"分"]
[null,null,null,null,null,null,"残業実施日数",null,null,null,null,null,null,null,null,null,"日",null,null,null,null,null,null,"日",null,null,null,null,null,null,"日"]
[null,null,null,null,null,null,"残業時間",null,null,null,null,null,"時間",null,null,null,"分",null,null,"時間",null,null,null,"分",null,null,"時間",null,null,null,"分"]
[null,null,null,null,null,null,"給与支給実績\n※賞与一時金、通勤手当を除いた給与額（税・社会保険等の控除前金額）",null,null,null,null,null,null,null,null,null,"円",null,null,null,null,null,null,"円",null,null,null,null,null,null,"円"]
[null,null,null,null,null,null,"年・月",null,null,null,"ⅳ",null,null,null,"年",null,"月","ⅴ",null,null,null,"年",null,"月","ⅵ",null,null,null,"年",null,"月"]
[null,null,null,null,null,null,"就労日数\n※有給休暇含む",null,null,null,null,null,null,null,null,null,"日",null,null,null,null,null,null,"日",null,null,null,null,null,null,"日"]
[null,null,null,null,null,null,"労働時間\n※休憩・残業時間含む",null,null,null,null,null,"時間",null,null,null,"分",null,null,"時間",null,null,null,"分",null,null,"時間",null,null,null,"分"]
[null,null,null,null,null,null,"残業実施日数",null,null,null,null,null,null,null,null,null,"日",null,null,null,null,null,null,"日",null,null,null,null,null,null,"日"]
[null,null,null,null,null,null,"残業時間",null,null,null,null,null,"時間",null,null,null,"分",null,null,"時間",null,null,null,"分",null,null,"時間",null,null,null,"分"]
[null,null,null,null,null,null,"給与支給実績\n※賞与一時金、通勤手当を除いた給与額（税・社会保険等の控除前金額）",null,null,null,null,null,null,null,null,null,"円",null,null,null,null,null,null,"円",null,null,null,null,null,null,"円"]
["育児に関する休業・短時間勤務制度に関する項目"]
[12,"産前･産後休業の\n取得(予定)期間",null,null,null,null,null,null,null,null,null,"年",null,null,"月",null,null,"日",null,"～",null,null,"年",null,null,"月",null,null,"日"]
[null,null,null,null,null,null,null,null,null,null,null,"年",null,null,"月",null,null,"日",null,"～",null,null,"年",null,null,"月",null,null,"日"]
[null,null,null,null,null,null,null,null,null,null,null,"年",null,null,"月",null,null,"日",null,"～",null,null,"年",null,null,"月",null,null,"日"]
[13,"育児休業の\n取得(予定)期間",null,null,null,null,"根拠"]
[null,null,null,null,null,null,null,null,null,null,null,"年",null,null,"月",null,null,"日",null,"～",null,null,"年",null,null,"月",null,null,"日"]
[null,null,null,null,null,null,"延長",null,null,null,"任意",null,null,null,"年",null,null,"月",null,null,"日","～",null,null,"年",null,null,"月",null,null,"日"]
[null,null,null,null,null,null,null,null,null,null,null,"年",null,null,"月",null,null,"日",null,"～",null,null,"年",null,null,"月",null,null,"日"]
[null,null,null,null,null,null,"延長",null,null,null,"任意",null,null,null,"年",null,null,"月",null,null,"日","～",null,null,"年",null,null,"月",null,null,"日"]
[null,null,null,null,null,null,"入所が内定した場合の育児休業の短縮可否"]
[null,null,null,null,null,null,null,null,null,null,null,"年",null,null,"月",null,null,"日",null,"～",null,null,"年",null,null,"月",null,null,"日"]
[14,"復職（予定）日",null,null,null,null,null,null,"年",null,null,"月",null,null,"日",null,"※証明書発行事業所で育児休業等を取得中等の場合に限る"]
[15,"育児のための短時間勤務制度の利用をはじめとした勤務体制の変更\n（変更中・変更予定）",null,null,null,null,"勤務体制の変更（予定）",null,null,null,null,null,null,null,"体制変更要因"]
[null,null,null,null,null,null,null,null,null,null,null,null,null,null,null,null,null,null,null,null,null,null,null,null,"(",null,null,null,null,null,")"]
[null,null,null,null,null,null,"変更後の就労日"]
[null,null,null,null,null,null,"勤務体制の変更（予定）期間",null,null,null,null,null,null,null,"年",null,null,"月",null,null,"日","～",null,null,"年",null,null,"月",null,null,"日"]
[null,null,null,null,null,null,"変更後の就労時間\n※休憩時間含む",null,null,null,null,"月",null,null,"時間",null,null,null,"分","就労日数",null,null,"月",null,null,"日"]
[null,null,null,null,null,null,null,null,null,null,null,"日",null,null,"時間",null,null,null,"分"]
[null,null,null,null,null,null,"変更後の\n就労時間帯",null,null,"時間帯①",null,null,null,null,"時",null,null,"分","～",null,null,"時",null,null,"分","（うち休憩時間",null,null,null,null,"分）"]
[null,null,null,null,null,null,null,null,null,"時間帯②",null,null,null,null,"時",null,null,"分","～",null,null,"時",null,null,"分","（うち休憩時間",null,null,null,null,"分）"]
[null,null,null,null,null,null,null,null,null,"時間帯③",null,null,null,null,"時",null,null,"分","～",null,null,"時",null,null,"分","（うち休憩時間",null,null,null,null,"分）"]
["保育士等（保育士、幼稚園教諭又は保育教諭）としての勤務実態の有無"]
[16,"保育士等としての\n勤務実態の有無",null,null,null,null,null,null,null,"勤務先施設等種別"]
[null,null,null,null,null,null,null,null,null,null,null,null,null,null,null,"(",null,null,null,null,null,null,null,null,")"]
[]
[null,"資格･免許取得状況"]
["備考"]
["備考"]
["朝霞市追加項目"]
["その他基本的事項"]
[17,"基本事項",null,null,null,null,"法人番号"]
[null,null,null,null,null,null,"記載内容問合せ先メールアドレス"]
[null,null,null,null,null,null,"社員番号等(任意)"]
[null,null,null,null,null,null,"業種"]
[]
[]
[null,null,null,null,null,null,null,null,null,null,null,null,null,null,null,null,null,null,null,"(",null,null,null,null,null,null,null,null,null,null,"）"]
["本人の就労状況、就労先（就労予定先の場合も含む）に関する項目"]
[18,"就労状況・予定②",null,null,null,null,"単身赴任",null,null,null,null,null,null,"期間",null,"赴任開始日（赴任予定日）",null,null,null,null,null,null,"～","赴任終了日※未定の場合は記載不要"]
[null,null,null,null,null,null,null,null,null,null,null,null,null,null,null,null,null,"年",null,"月",null,"日","～",null,null,"年",null,"月",null,"日"]
[null,null,null,null,null,null,null,null,null,null,"赴任（予定）地"]
[null,null,null,null,null,null,"配偶者控除"]
[null,null,null,null,null,null,"扶養親族"]
[null,null,null,null,null,null,"社会保険加入状況"]
[null,null,null,null,null,null,"雇用保険加入状況"]
[null,null,null,null,null,null,"健康保険加入状況"]
[null,null,null,null,null,null,"源泉徴収税"]
[null,null,null,null,null,null,"主な就労場所"]
[null,null,null,null,null,null,"業務内容"]
[null,null,null,null,null,null,"通勤距離",null,null,null,null,null,null,null,null,"約",null,null,"㎞"]
["本人との契約（雇用契約等、就労に関する契約）・就業規則の内容に関する項目\n※実際に働いた時間や支給された給与の額ではなく、雇用契約・就業規則の内容に関する事項を記載してください。"]
[19,"就労形態②",null,null,null,null,"給与形態",null,null,null,null,null,null,null,null,null,null,null,null,null,null,"金額",null,null,null,null,null,"円"]
[null,null,null,null,null,null,null,null,null,null,null,"(",null,null,null,null,null,null,null,null,")"]
[null,null,null,null,null,null,"雇用主との親族関係",null,null,null,null,null,null,null,null,"続柄"]
[null,null,null,null,null,null,"内職者\n関係",null,null,"委託元事業者の業務内容"]
[null,null,null,null,null,null,null,null,null,"作業日数",null,"月",null,null,"日","作業時間帯",null,null,null,null,"時",null,null,"分","～",null,null,"時",null,null,"分"]
[null,null,null,null,null,null,"月２回以上の夜間勤務の有無",null,null,null,null,null,null,null,null,null,null,"※宿直や宿泊を伴う出張を含み、残業は含まない\n※夜間勤務とは、夜24時を含む勤務"]
[null,null,null,null,null,null,"週２回以上の夜間勤務の有無",null,null,null,null,null,null,null,null,null,null,"※宿直や宿泊を伴う出張を含み、残業は含まない\n※夜間勤務とは、夜24時を含む勤務"]
[null,null,null,null,null,null,"（新規雇用・復帰等の場合）\n時間外勤務予定",null,null,null,null,null,null,null," １日当たり",null,null,null,null,"時間程度（見込み）"]
[null,null,null,null,null,null,"土日祝の就労予定数",null,null,null,null,null,"月",null,null,"日",null,"休業日"]
["本人の就労実績に関する項目　※実績（就労予定等で実績がない場合は、今後の就労見込み）を記載してください。 "]
[20,"直近の就労実績②",null,null,null,null,"締日",null,null,null,null,"日","支払日",null,null,null,null,"日","給与支給実績",null,null,null,"平均\n(直近３か月)",null,null,"月",null,null,null,null,"円"]
[21,"産休・育休以外の\n休業の取得期間",null,null,null,null,null,null,null,null,null,null,"理由",null,null,null,null,null,null,null,null,"(",null,null,null,null,null,null,null,null,"）"]
[null,null,null,null,null,null,"期間",null,null,null,"年",null,null,"月",null,null,"日","～",null,null,"年",null,null,"月",null,null,"日"]
["育児・短時間勤務制度に関する項目"]
[22,"出産(予定)日",null,null,null,null,null,null,"年",null,null,"月",null,null,"日"]
[23,"職場内託児所",null,null,null,null,"託児所",null,null,null,null,"利用有無",null,null,null,null,null,"利用料"]
[null,null,null,null,null,null,"施設名"]
[24,"育児休業の短縮・\n延長への同意",null,null,null,null,"育児休業の取得(予定)期間終了前であっても、保育所等入所の内定があった場合に育児休業を短縮し、保育所等入所月内に職場復帰すること"]
[null,null,null,null,null,null,"育児休業の取得(予定)期間終了後については、育児休業(に準ずる措置）を延長し、保育所等入所の内定があった時点で保育所等入所月内に職場復帰すること"]
[25,"育児休業給付金\n受給資格の有無"]
[26,"育児のための短時間勤務制度の利用をはじめとした勤務体制の変更実績",null,null,null,null,"体制変更要因"]
[null,null,null,null,null,null,null,null,null,null,null,null,null,null,null,null,null,"（",null,null,null,null,null,null,null,null,null,null,null,"）"]
[null,null,null,null,null,null,"勤務体制の変更期間（実績）",null,null,null,null,null,null,null,"年",null,null,"月",null,null,"日","～",null,null,"年",null,null,"月",null,null,"日"]
[null,null,null,null,null,null,"変更後の就労時間\n※休憩時間含む",null,null,null,null,"月",null,null,"時間",null,null,null,"分","就労日数",null,null,"月",null,null,"日"]
[null,null,null,null,null,null,null,null,null,null,null,"日",null,null,"時間",null,null,null,"分",null,"（うち休憩時間",null,null,null,null,"分）"]
["医師・看護師等としての勤務実態の有無"]
[27,"医師・看護師等としての勤務実態の有無",null,null,null,null,null,null,null,null,null,null,"資格･免許取得状況"]
[null,"介護士等としての\n勤務実態の有無",null,null,null,null,null,null,null,null,null,null,"資格･免許取得状況"]
[null,null,null,null,null,null,null,null,null,null,null,null,null,null,null,null,null,null,null,"（",null,null,null,null,null,null,null,null,null,null,"）"]
[28,"施設等種別",null,null,null,null,null,null,null,null,null,null,null,null,"（",null,null,null,null,null,null,null,null,null,null,null,null,null,null,null,"）"]
["個人事業に関する項目"]
[29,"個人事業形態",null,null,null,null,"経営者との関係",null,null,null,null,null,null,null,null,null,null,null,null,null,null,null,null,null,"続柄\n※「専従者」、「家族従業者」、「その他」にチェックを入れた場合に記載"]
[null,null,null,null,null,null,null,null,null,null,"（",null,null,null,null,null,null,null,null,null,null,null,null,"）"]
[null,null,null,null,null,null,"就労日"]
[null,null,null,null,null,null,"仕事関連の資格の有無",null,null,null,null,null,null,null,null,"資格名"]
[null,null,null,null,null,null,"給与形態",null,null,null,null,null,null,null,null,null,null,null,null,null,null,"金額",null,null,null,null,null,null,null,null,"円"]
[null,null,null,null,null,null,null,null,null,null,null,"(",null,null,null,null,null,null,null,null,")","平均月収",null,null,null,null,null,null,null,null,"円"]
[null,null,null,null,null,null,"前年分年間\n総収入額",null,null,null,null,null,null,null,null,"円"]
[null,null,null,null,null,null,"営業(開業･\n就労)時間",null,null,"平日",null,null,null,null,"時",null,null,"分","～",null,null,"時",null,null,"分","（うち休憩時間",null,null,null,null,"分）"]
[null,null,null,null,null,null,null,null,null,"土曜",null,null,null,null,"時",null,null,"分","～",null,null,"時",null,null,"分","（うち休憩時間",null,null,null,null,"分）"]
[null,null,null,null,null,null,null,null,null,"日曜",null,null,null,null,"時",null,null,"分","～",null,null,"時",null,null,"分","（うち休憩時間",null,null,null,null,"分）"]
[null,null,null,null,null,null,"店舗の\n有無",null,null,null,"純利益",null,null,null,null,"円","開業\n期間",null,null,"年",null,"月",null,"日","～",null,"年",null,"月",null,"日"]
[null,null,null,null,null,null,"取引開始(予定)日",null,null,null,null,null,null,"年",null,null,"月",null,null,"日"]
[30,"個人農業者",null,null,null,null,"耕作面積",null,null,null,null,null,null,null,"a","作付内容"]
[null,null,null,null,null,null,"農閑期",null,null,null,"月","～",null,null,"月","農閑期の仕事内容"]
[31,"民生・児童委員\n※自営業の方は民生・児童委員の確認が必要です",null,null,null,null,"　　上記のとおり確認いたしました。"]
[null,null,null,null,null,null,null,null,null,null,"年",null,null,"月",null,null,"日"]
[null,null,null,null,null,null,"　　住所"]
[null,null,null,null,null,null,"　　氏名",null,null,null,null,null,null,null,null,null,null,null,null,null,"電話番号",null,null,null,"―",null,null,"―"]
["（※事業者証明欄はここまで）"]
[]
[]
["保護者\n記載欄",null,"児童との続柄"]
[null,null,null,null,null,null,null,null,"（",null,null,null,null,null,null,null,null,null,null,null,null,null,null,null,null,null,null,null,null,null,"）"]
[null,null,"児童名",null,null,null,null,null,"生年月日"]
[null,null,null,null,null,null,null,null,null,null,null,null,null,null,null,null,null,null,"施設名"]
[null,null,null,null,null,null,null,null,null,null,null,"年",null,null,"月",null,null,"日"]
[null,null,null,null,null,null,null,null,null,null,null,null,null,null,null,null,null,null,"施設名"]
[null,null,"児童№",null,null,null,null,null,"希望保育\n時間",null,null,"　"]
[null,null,null,null,null,null,null,null,null,null,null,null,null,null,null,null,null,null,"施設名"]
[null,null,"児童名",null,null,null,null,null,"生年月日"]
[null,null,null,null,null,null,null,null,null,null,null,null,null,null,null,null,null,null,"施設名"]
[null,null,null,null,null,null,null,null,null,null,null,"年",null,null,"月",null,null,"日"]
[null,null,null,null,null,null,null,null,null,null,null,null,null,null,null,null,null,null,"施設名"]
[null,null,"児童№",null,null,null,null,null,"希望保育\n時間"]
[null,null,null,null,null,null,null,null,null,null,null,null,null,null,null,null,null,null,"施設名"]
[null,null,"就労先への通勤時間",null,null,null,null,null,"時間",null,null,"分（往復）"]
[null,null,"その他の状況",null,null,null,null,null,null,null,null,null,null,"（",null,null,null,null,null,null,null,null,null,null,null,null,null,null,null,null,"）"]
[null,null,"ひとり親世帯",null,null,null,"事由",null,null,null,null,null,null,null,null,null,null,null,"(",null,null,null,"）","養育費等経済援助"]
[null,null,null,null,null,null,"事由発生年月日",null,null,null,null,null,"年",null,null,"月",null,null,"日",null,null,null,"援助金額",null,null,"月額",null,null,null,null,"円"]
["※就労証明書様式の記載要領は当BOOKの「記載要領」シートを参照してください。"]
[]
[]
["保護者\n記入欄",null,"　これは、（　父　・　母　・　祖父　・　祖母　・　　　　　　）の証明です。"]
[null,null,"児童名",null,null,null,null,null,"生年月日",null,null,null,null,null,"在所施設・申請状況",null,null,null,null,null,null,null,null,null,"学年"]
[null,null,null,null,null,null,null,null,"年　　　　　月　　　　　日",null,null,null,null,null,"　　在所（施設名：　　　　　　　　　　　　　　　　　　） ・ 申請中",null,null,null,null,null,null,null,null,null,"　　　　　　　　　　　　　　　　　年生"]
[null,null,null,null,null,null,null,null,"年　　　　　月　　　　　日",null,null,null,null,null,"　　在所（施設名：　　　　　　　　　　　　　　　　　　） ・ 申請中",null,null,null,null,null,null,null,null,null,"　　　　　　　　　　　　　　　　　年生"]
[null,null,null,null,null,null,null,null,"年　　　　　月　　　　　日",null,null,null,null,null,"　　在所（施設名：　　　　　　　　　　　　　　　　　　） ・ 申請中",null,null,null,null,null,null,null,null,null,"　　　　　　　　　　　　　　　　　年生"]
[null,null,"就労先への通勤時間",null,null,null,null,null,"　　　　　　　　　　　　　　分（片道）"]
[]
["【作成上の諸注意】"]
["①","上記の内容について、朝霞市職員又は在所するクラブ等が電話等により勤務実態を確認することがありますので、あらかじめご了承ください。"]
["②","就労証明書の有効期限は、上記証明日から概ね３か月です。"]
["③","時間外勤務、時間短縮勤務等について、備考欄に記入してください。"]
["※記入内容に虚偽又は申請者による加筆があった場合、申請は無効（在所者は退所）となり、有印私文書偽造の罪や施設の不正利用による給付費の詐欺罪に問われることがあります。"]
[]
[]
[]
[]
[null,null,null,null,null,null,null,null,null,null,null,null,null,null,null,null,"社会福祉法人あさか杏樹会　　　　　電話048-473-8650"]

{"sheet":"プルダウンリスト","index":1,"n_rows":123,"n_cols":13,"rows_kept":123,"cut":false,"hidden":true,"merged":[]}
["市区町村名","施設名","年","年（児童生年）","年（実績/過去）","年（生年月日）","予定・実績混在","月","日","時","分","休憩時間","日数"]
[null,null,{"$f":"YEAR(TODAY())","v":2021},{"$f":"YEAR(TODAY())","v":2021},{"$f":"YEAR(TODAY())","v":2021},{"$f":"YEAR(TODAY())","v":2021},{"$f":"G3+1","v":2023},1,1,0,0,15,0]
[null,null,{"$f":"C2+1","v":2022},{"$f":"D2-1","v":2020},{"$f":"E2-1","v":2020},{"$f":"F2-1","v":2020},{"$f":"G4+1","v":2022},2,2,1,1,30,1]
[null,null,{"$f":"C3+1","v":2023},{"$f":"D3-1","v":2019},{"$f":"E3-1","v":2019},{"$f":"F3-1","v":2019},{"$f":"YEAR(TODAY())","v":2021},3,3,2,2,45,2]
[null,null,2024,2018,2018,2018,{"$f":"G4-1","v":2020},4,4,3,3,60,3]
[null,null,2025,2017,2017,2017,{"$f":"G5-1","v":2019},5,5,4,4,75,4]
[null,null,2026,2016,2016,2016,2018,6,6,5,5,90,5]
[null,null,2027,2015,2015,2015,2017,7,7,6,6,105,6]
[null,null,2028,2014,2014,2014,2016,8,8,7,7,120,7]
[null,null,2029,2013,2013,2013,2015,9,9,8,8,135,8]
[null,null,2030,2012,2012,2012,2014,10,10,9,9,150,9]
[null,null,2031,2011,2011,2011,2013,11,11,10,10,165,10]
[null,null,2032,2010,2010,2010,2012,12,12,11,11,180,11]
[null,null,2033,2009,2009,2009,2011,null,13,12,12,195,12]
[null,null,2034,2008,2008,2008,2010,null,14,13,13,210,13]
[null,null,2035,2007,2007,2007,2009,null,15,14,14,225,14]
[null,null,2036,2006,2006,2006,2008,null,16,15,15,240,15]
[null,null,2037,2005,2005,2005,2007,null,17,16,16,255,16]
[null,null,2038,2004,2004,2004,2006,null,18,17,17,270,17]
[null,null,2039,2003,2003,2003,2005,null,19,18,18,285,18]
[null,null,2040,2002,2002,2002,2004,null,20,19,19,300,19]
[null,null,2041,2001,2001,2001,2003,null,21,20,20,315,20]
[null,null,2042,2000,2000,2000,2002,null,22,21,21,330,21]
[null,null,2043,1999,1999,1999,2001,null,23,22,22,345,22]
[null,null,2044,1998,1998,1998,2000,null,24,23,23,360,23]
[null,null,2045,1997,1997,1997,1999,null,25,24,24,375,24]
[null,null,2046,1996,1996,1996,1998,null,26,25,25,390,25]
[null,null,2047,1995,1995,1995,1997,null,27,26,26,405,26]
[null,null,2048,null,1994,1994,1996,null,28,27,27,420,27]
[null,null,2049,null,1993,1993,1995,null,29,28,28,435,28]
[null,null,2050,null,1992,1992,1994,null,30,29,29,450,29]
[null,null,null,null,1991,1991,1993,null,31,null,30,465,30]
[null,null,null,null,1990,1990,1992,null,null,null,31,480,31]
[null,null,null,null,1989,1989,1991,null,null,null,32]
[null,null,null,null,1988,1988,1990,null,null,null,33]
[null,null,null,null,1987,1987,1989,null,null,null,34]
[null,null,null,null,1986,1986,1988,null,null,null,35]
[null,null,null,null,1985,1985,1987,null,null,null,36]
[null,null,null,null,1984,1984,1986,null,null,null,37]
[null,null,null,null,1983,1983,1985,null,null,null,38]
[null,null,null,null,1982,1982,1984,null,null,null,39]
[null,null,null,null,1981,1981,1983,null,null,null,40]
[null,null,null,null,1980,1980,1982,null,null,null,41]
[null,null,null,null,1979,1979,1981,null,null,null,42]
[null,null,null,null,1978,1978,1980,null,null,null,43]
[null,null,null,null,1977,1977,1979,null,null,null,44]
[null,null,null,null,1976,1976,1978,null,null,null,45]
[null,null,null,null,1975,1975,1977,null,null,null,46]
[null,null,null,null,1974,1974,1976,null,null,null,47]
[null,null,null,null,1973,1973,1975,null,null,null,48]
[null,null,null,null,1972,1972,1974,null,null,null,49]
[null,null,null,null,1971,1971,1973,null,null,null,50]
[null,null,null,null,1970,1970,1972,null,null,null,51]
[null,null,null,null,1969,1969,1971,null,null,null,52]
[null,null,null,null,1968,1968,1970,null,null,null,53]
[null,null,null,null,1967,1967,1969,null,null,null,54]
[null,null,null,null,1966,1966,1968,null,null,null,55]
[null,null,null,null,1965,1965,1967,null,null,null,56]
[null,null,null,null,1964,1964,1966,null,null,null,57]
[null,null,null,null,1963,1963,1965,null,null,null,58]
[null,null,null,null,1962,1962,1964,null,null,null,59]
[null,null,null,null,1961,1961,1963]
[null,null,null,null,null,1960,1962]
[null,null,null,null,null,1959,1961]
[null,null,null,null,null,1958,1960]
[null,null,null,null,null,1957,1959]
[null,null,null,null,null,1956,1958]
[null,null,null,null,null,{"$f":"F67-1","v":1955},1957]
[null,null,null,null,null,1954,1956]
[null,null,null,null,null,1953,{"$f":"G69-1","v":1955}]
[null,null,null,null,null,1952,1954]
[null,null,null,null,null,1951,1953]
[null,null,null,null,null,1950,1952]
[null,null,null,null,null,1949,1951]
[null,null,null,null,null,1948,1950]
[null,null,null,null,null,1947,1949]
[null,null,null,null,null,1946,1948]
[null,null,null,null,null,1945,1947]
[null,null,null,null,null,1944,1946]
[null,null,null,null,null,1943,1945]
[null,null,null,null,null,1942,1944]
[null,null,null,null,null,1941,1943]
[null,null,null,null,null,1940,1942]
[null,null,null,null,null,1939,1941]
[null,null,null,null,null,1938,1940]
[null,null,null,null,null,1937,1939]
[null,null,null,null,null,1936,1938]
[null,null,null,null,null,1935,1937]
[null,null,null,null,null,1934,1936]
[null,null,null,null,null,1933,1935]
[null,null,null,null,null,1932,1934]
[null,null,null,null,null,1931,1933]
[null,null,null,null,null,1930,1932]
[null,null,null,null,null,1929,1931]
[null,null,null,null,null,1928,1930]
[null,null,null,null,null,1927,1929]
[null,null,null,null,null,1926,1928]
[null,null,null,null,null,1925,1927]
[null,null,null,null,null,1924,1926]
[null,null,null,null,null,1923,1925]
[null,null,null,null,null,1922,1924]
[null,null,null,null,null,1921,1923]
[null,null,null,null,null,1920,1922]
[null,null,null,null,null,1919,1921]
[null,null,null,null,null,1918,1920]
[null,null,null,null,null,1917,1919]
[null,null,null,null,null,1916,1918]
[null,null,null,null,null,1915,1917]
[null,null,null,null,null,1914,1916]
[null,null,null,null,null,1913,1915]
[null,null,null,null,null,1912,1914]
[null,null,null,null,null,1911,1913]
[null,null,null,null,null,1910,1912]
[null,null,null,null,null,1909,1911]
[null,null,null,null,null,1908,1910]
[null,null,null,null,null,1907,1909]
[null,null,null,null,null,1906,1908]
[null,null,null,null,null,1905,1907]
[null,null,null,null,null,1904,1906]
[null,null,null,null,null,1903,1905]
[null,null,null,null,null,1902,1904]
[null,null,null,null,null,1901,1903]
[null,null,null,null,null,1900,1902]

{"sheet":"記載要領","index":2,"n_rows":78,"n_cols":5,"rows_kept":78,"cut":false,"hidden":false,"merged":[[73,2,73,3],[74,0,74,4],[60,2,60,3],[61,2,63,2],[64,2,64,3],[68,1,69,1],[68,2,68,3],[69,2,69,3],[55,1,56,1],[55,2,56,2],[21,2,21,3],[22,1,23,1],[22,2,22,3],[23,2,23,3],[27,1,46,1],[27,2,46,2],[27,3,39,3],[40,3,46,3],[47,2,47,3],[48,2,48,3],[49,2,49,3],[50,2,50,3],[51,2,51,3],[20,2,20,3],[0,1,0,4],[4,2,4,3],[5,2,5,3],[6,2,6,3],[7,2,7,3],[8,2,8,3],[9,2,9,3],[14,1,16,1],[14,2,14,3],[15,2,15,3],[16,2,16,3],[11,1,11,4]]}
["戻","【就労証明書（詳細版）】記載要領"]
[]
["■証明書を発行する事業者に関する項目（①～⑥）"]
[]
[null,"①","証明書発行事業所名",null,"○証明書を発行する事業者の名称（法人名）を記載してください。\n　※就労証明書の発行に責任を持つ企業・組織・団体名等を記載してください。\n　※個人事業主の場合は事業者の名称を記載してください。"]
[null,"②","証明書発行事業所住所",null,"○証明書発行事業所の住所を記載してください。\n　※証明書の証明対象となる者（以下「本人」という。）の就労先住所ではない点に注意してください。"]
[null,"③","証明書発行責任者氏名",null,"○証明書の内容に責任を持つ者の氏名を記載してください。"]
[null,"④","証明書発行責任者役職",null,"○証明書の内容に責任を持つ者の役職名を記載してください。"]
[null,"⑤","証明日",null,"○証明日（証明書発行日）を記載してください。\n　※年の欄は西暦で記載してください。"]
[null,"⑥","記載内容の問合せ先",null,"○証明書の内容について、自治体からの事務的な連絡を受ける担当部署、担当者名、電話番号を記載してください。\n　※個人事業主等「部署」が存在しない場合は、「担当部署」欄は空欄で構いません。\n　※本証明書の作成は、業務内容について事業者として証明できる担当部署、担当者が作成するよう、ご留意ください。"]
[]
[null,"※№は国が示した就労証明書（詳細版）を準用しているため、朝霞市書式では欠番が生じています。"]
["■氏名等に関する項目"]
[]
[null,"№1","フリガナ/本人氏名",null,"○本人の氏名、フリガナを記載してください。"]
[null,null,"生年月日",null,"○本人の生年月日を記載してください。\n　※年の欄は西暦で記載してください。"]
[null,null,"本人住所",null,"○本人の住所を記載してください。"]
[]
["■本人の就労状況、就労先（就労予定先の場合含む）に関する項目"]
[]
[null,"№2","就労状況・予定",null,"○現在の就労状況について該当する項目をチェック（レ点記入）してください。\n　※「□就労中」には証明書発行事業所から出向し就労している場合も含みます。\n　※「□産休・育休中」には、法令上の産前・産後休業及び育児休業に限らず法人独自の休業等も含みます。\n　※「□就労予定（転職内定含む）」には、以下の両方を含みます。\n　　・新規就労（現在無職だが、証明書発行事業所での就労が内定している場合）\n　　・転職（現在別事業所で働いているが、証明書発行事業所での就労が内定している場合）\n　※いずれにも該当しない場合は「□その他」をチェック（レ点記入）し、カッコ内に具体的に記載してください。"]
[null,"№3","主な就労先事業所名\n",null,"○①証明書発行事業所名と異なる場合は本人が働いている事業所の名称を記載してください。"]
[null,"№4","主な就労先住所",null,"○②証明書発行事業所住所と異なる場合は本人が実際に働いている事業所の住所を記載してください。　\n　※実際に働いている就労場所が複数存在する場合は、主たる就労先の住所を記載するようにしてください。\n　※就労場所が存在しない場合には、自宅等就労時に本人が主として存在している場所を記載するようにしてください。"]
[null,null,"通勤手段",null,"○労災関係や通勤手当支給等の関係で事業者側で把握している通勤手段を記載してください。\n　※通勤手段として「□電車・バス」を選択された場合には、自宅の最寄り駅・バス停及び就労先の最寄り駅・バス停も併せて記載してください。経由駅等は不要です。\n　※通勤手段がいずれにも該当しない場合は「□その他」をチェック（レ点記入）し、カッコ内に簡潔に記載してください。"]
[]
["■本人との契約（雇用契約等、就労に関する契約）・就業規則の内容に関する項目"]
[]
[null,"№5","就労形態/働き方","就労形態","○就労形態について該当する項目にチェック（レ点記入）してください。"]
[null,null,null,null,"「□役員（会社の取締役・監査役、法人の理事等）」\n　会社、団体、公社等の役員（法人格を有する商店等の経営者を含む。）"]
[null,null,null,null,"「□自営業主（個人事業主）」\n　個人経営の事業を営んでいる者"]
[null,null,null,null,"「□正規の職員・従業員」\n　派遣労働者ではなく、期間の定めのない労働契約を締結する者"]
[null,null,null,null,"「□パート・アルバイト」\n　正社員より1日の所定労働時間が短い、または１週間の所定労働日数が少ない者 "]
[null,null,null,null,"「□派遣社員」（労働者派遣事業所の派遣社員）\n　働いている企業等と直接雇用関係がなく、期間の定めがある労働契約を締結する者"]
[null,null,null,null,"「□契約・嘱託社員」\n　働いている企業等と直接雇用の関係があり、期間の定めがある労働契約を締結する者"]
[null,null,null,null,"「□会計年度任用職員」\n　地方公務員法第22条の２に基づき任用される非常勤職員"]
[null,null,null,null,"「□自営業専従者」\n　自営業主（個人事業主）と親族関係にある者で専従者控除の対象となる者。いわゆる専従者や自営業協力者のこと。"]
[null,null,null,null,"「□内職者」\n　自宅で内職（賃仕事）をしている者"]
[null,null,null,null,"「□家族従業者」\n　自営業主の家族（生計を一にする親族）で、その自営業主の営む事業に無給で従事している者"]
[null,null,null,null,"「□業務委託」\n　業務委託契約を締結する者"]
[null,null,null,null,"「□その他」\n　上記のいずれにも該当しない場合にチェック（レ点記入）し、カッコ内に具体的に記載してください。\n\n　※「契約・嘱託社員」等の場合で「会計年度任用職員」にも該当する場合は、「会計年度任用職員」にチェック（レ点記入）してください。"]
[null,null,null,"働き方","○働き方について該当する項目にチェック（レ点記入）してください。"]
[null,null,null,null,"「□固定の労働時間制」\n　労働基準法第32条及び第40条に基づく労働時間制度による働き方"]
[null,null,null,null,"「□変形労働時間制」\n　労働基準法第32条の２、32条の４、32条の５に基づく労働時間制度による働き方"]
[null,null,null,null,"「□フレックスタイム制」\n　労働基準法第32条の３に基づく労働時間制度による働き方"]
[null,null,null,null,"「□事業場外労働のみなし労働時間制」\n　労働基準法第38条の２に基づく労働時間制度による働き方"]
[null,null,null,null,"「□裁量労働制」\n　労働基準法第38条の３、第38条の４に基づく労働時間制度による働き方"]
[null,null,null,null,"　※いずれにも該当しない場合には「□その他」欄にチェック（レ点記入）し、カッコ内に具体的に記載してください。"]
[null,"№6","就労日数",null,"○一月当たり、一週当たりの就労日数について記載してください。\n　※雇用契約に基づく就労日数であり、実際に就労した日数（実績）ではありません。\n　※雇用契約上、月当たりの就労日数が定められている場合、週当たりの就労日数欄には、４（週）で除した日数を記載してください。\n　※雇用契約上、週当たりの就労日数が定められている場合、月当たりの就労日数欄には、４（週）を乗じた日数を記載してください。\n　※雇用契約上、年当たりの就労日数が定められている場合、月当たりの就労日数欄には12（月）で除した日数、週当たりの就労日数欄には48（週）で除した日数を記載してください。"]
[null,"№7","就労時間\n※休憩時間含む",null,"○一月当たり、一週当たり、一日当たりの就労時間について記載してください。\n　※雇用契約に基づく就労時間であり、実際に就労した時間（実績）ではありません。育児短時間勤務制度等を利用している場合でも、制度利用前の就労時間数を記載してください。\n　※雇用契約上、週当たりの就労時間が定められている場合、月当たりの就労時間欄には、４（週）を乗じた時間を記載してください。\n　※雇用契約上、年当たりの就労時間が定められている場合、月当たりの就労時間欄には12（月）で除した時間を、週当たりの就労時間欄には48（週）で除した時間を記載してください。\n　※雇用契約上の就労時間であるため、残業時間は除いてください。\n　※シフト勤務等変則就労の場合は、一日当たりの就労時間については、平均的な就労時間を記載してください。なお、市区町村における保育の必要性認定に必要となる場合は、シフト表の追加提出を求める場合があります。\n　※休憩時間（就業規則等で定められている休憩に限る。）は含めてください。また、就業規則等で定められている休憩時間数についても記載してください。"]
[null,"№8","就労時間帯",null,"○就労時間帯（何時から何時まで働くこととされているか）を記載してください。\n　※時間帯は、「24時間表記」で記載してください。夜間勤務など日をまたぐ場合には、０時～29時の幅（例えば22時から翌朝５時まで就労する場合は「22時00分～29時00分」）で記載してください。\n　※短時間勤務制度を利用している場合は、制度利用前の雇用契約・就業規則上の就労時間帯を記載してください。\n　※フレックスタイム制、裁量労働制の場合は、標準的な就労時間帯を記載してください。\n　※曜日等により標準的な時間帯が異なるなど、定期的に異なる就業時間帯を組み合わせている場合は、３パターンまで、各パターンごとに標準的な就労時間帯を記載してください。\n　※複数パターンの就労時間帯を記載する場合、主たる労働時間帯が決まっている場合は当該時間帯を①に、決まっていない場合は一月当たりの勤務回数の多い時間帯を①としてください。"]
[null,"№9","就労日",null,"○雇用契約・就業規則上の就労日（曜日又は祝日）について該当する項目にチェック（レ点記入）してください。\n　※定休日ではないので注意してください。\n　※時間帯①～③について、No.8で回答した時間帯に対応する就労日を選択してください。No.8において記載していない時間帯については、記載不要です。\n\n○休日が不規則で、事業所の年間カレンダーで休日が決まっている場合には、その旨を備考欄に記載の上、別途カレンダーを提出してください。\n\n○土日祝日の就労が常態的（平均して月１回以上）である場合には、その旨備考欄に記載してください。"]
[null,"№10","雇用（予定）期間等",null,"○雇用期間について「□無期」か「□有期」にチェック（レ点記入）してください。\n\n○雇用期間について「□無期」の場合は就労開始（予定）日のみを、「□有期」の場合はその期間を記載してください。\n　※年の欄は西暦で記載してください。\n　※就労開始（予定）日については、確定していなくても予定日での記載をするようにしてください。就労開始予定日を保育所等の利用開始日としている場合は、「□保育所等入所次第」にチェック（レ点記入）してください。\n\n○雇用期間について「□有期」をチェックした場合は契約満了後の更新の有無について「□有」「□有（見込み）」「□無」「□未定」のいずれかにチェック（レ点記入）してください。\n\n○契約満了後の更新の有無について「□有」又は「□有（見込み）」を選択した場合、更新後の雇用予定期間について可能な範囲で記載してください。\n　※原則として年度更新が予定されているものの確定していない等のケースであっても、予定で記載するようにしてください。"]
[]
["■本人の就労実績に関する項目"]
[]
[null,"№11","直近の就労実績","年・月","○直近の就労実績のある「年・月」を新しい順に記載してください。\n　　（例：○○年６月、○○年５月、○○年４月）\n　※「直近」とは、「証明日の属する月」の前月末まで（証明日が10月１日の場合の直近３か月は、７～９月をいいます。\n　※締日との関係で、証明日の属する月の前月の実績を把握していない場合は、証明日の属する月の前々月末まで（証明日が10月１日の場合、６～８月を「直近」としてください。\n　※年の欄は西暦で記載してください。"]
[null,null,null,"労働時間\n※休憩・残業時間含む","○「年・月」に対応する労働時間について記載してください。\n　※就業規則上の就労時間のほか、残業時間（時間外労働分）についても含めた実労働時間としてください。\n　※休憩時間（就業規則等で定められている休憩に限る。）は含めてください。\n　※有給休暇（時間休含む）取得の場合は雇用契約・就業規則上の就労時間労働したものとみなします。"]
[]
["■育児に関する休業・短時間勤務制度に関する項目"]
[]
[null,"№12","産前･産後休業の\n取得(予定)期間",null,"○産前・産後休業の取得（予定）期間を記載してください。\n　※年の欄は西暦で記載してください。\n　※法令上の産前・産後休業に限らず法人独自の就業規則等に基づいた休業も含みます。\n　※取得済みの場合は実績を記入してください。\n　※現在取得中の場合もしくは今後取得予定の場合はその期間（発行者が⑥証明日時点で把握している年月日）を記載してください。終了日が確定していない場合でも終了予定日を記載するようにしてください。"]
[null,"№13","育児休業の取得\n(予定)期間","期間","○育児休業の取得（予定）の根拠について「□法定」か「□企業独自」かにチェック（レ点記入）してください。\n　※育児・介護休業法に基づく育児休業の場合は「□法定」とし、同法に基づかない法人独自の就業規則等に基づく育児のための休業の場合は「□企業独自」としてください。\n○育児休業の取得（予定）期間を記載してください。\n　※年の欄は西暦で記載してください。\n　※法令上の育児休業に限らず法人独自の就業規則等に基づいた休業も含みます。\n　※取得済みの場合は実績を記載してください。\n　※現在取得中の場合若しくは今後取得予定の場合はその期間（発行者が⑥証明日時点で把握している年月日）を記載してください。\n　※終期が確定していない場合でも終了予定日を記載するようにしてください。取得期間が未定で、終了予定日についての記載も困難な場合は空欄で構いません。"]
[null,null,null,"延長","○育児休業の延長について「□可」か「□否」にチェック（レ点記入）してください。\n○育児休業の延長が「□可」の場合はその期間を記載してください（任意）。\n　※可否が未定の場合や終期が未定の場合は可能な範囲での記載で構いません。\n　※取得中又は取得予定の場合で、取得中（又は予定）期間のほかに、最長取得可能期間がある場合は、延長「□可」とした上でその期間を記載してください。"]
[null,null,null,"入所が内定した場合の育児休業の短縮可否","○育児休業の終了予定日よりも前の日時での保育所等の入所が内定した場合、育児休業を短縮し、入所内定日から復職することについて、「□可」か「□否」にチェック（レ点記入）してください。"]
[null,"№14","復職（予定）日",null,"○証明書発行事業所において取得中（又は取得予定）の育児休業等に係る復職（予定）日について証明書発行事業所が⑤証明日時点で把握している年月日を記載してください。\n　※年の欄は西暦で記載してください。\n　※証明書発行事業所において取得した育児休業等から復職済みの場合は、復職した日を記載してください。"]
[]
["■保育士等（保育士、幼稚園教諭又は保育教諭）としての勤務実態の有無"]
[]
[null,"№16","保育士等としての勤務実態の有無",null,"○保育士等（保育士、幼稚園教諭又は保育教諭）としての勤務実態の有無について「□有」、「□有（予定）」、「□無」のいずれかにチェック（レ点記入）してください。\n　※保育士等の資格を有していても、例えば事務員として働いている場合には「□無」としてください。\n\n○「□有」又は「□有（予定）」を選択した場合には、勤務先施設等種別について「□保育所」「□幼稚園」「□認定こども園」「□地域型保育を行う事業所」「□その他」から選択してチェック（レ点記入）してください。\n　※「□その他」をチェック（レ点記入）した場合は、具体的な内容をカッコ内に記載してください。"]
[null,null,"資格・免許取得状況",null,"○保育士等としての勤務実態が「□有」又は「□有（予定）」の場合に「□保育士資格」「□幼稚園教諭免許」をチェック（レ点記入）してください（複数選択可）。\n　なお、資格取得予定（取得見込みがある場合に限る）の場合には、当該取得予定の資格にチェックをした上、備考欄に「資格取得予定」である旨記載してください。"]
[]
["■備考"]
[]
[null,null,"備考",null,"○No.16における資格が「資格取得予定」の場合はその旨を記載してください。\n○特記事項があれば、この欄に記載してください。"]
[]
["■本人の就労状況、就労先（就労予定先の場合含む）に関する項目"]
[]
[null,"№18","就労状況・予定②","単身赴任／期間/\n赴任（予定）地","○単身赴任について「□有」か「□無」にチェック（レ点記入）してください。\n○「□有」の場合はその期間を記載してください。\n　※年の欄は西暦で記載してください。\n　※終期が未定の場合は終期欄は空欄で構いません。\n○「□有」の場合はその赴任（予定）地を記載してください。\n　※市町村単位で記載してください。市町村が決まっていない場合は、都道府県単位で記載してください。"]